[Event "34rd NATO Championship 2024"]
[Site "Rhodes"]
[Date "2024.10.23"]
[Round "4.13"]
[White "Circenis, Kaspars"]
[Black "Pirs, Matjaz"]
[Result "1-0"]
[ECO "D00"]
[WhiteElo "2120"]
[BlackElo "2203"]
[Annotator "RC"]
[PlyCount "101"]
[EventDate "2024.09.18"]
[EventType "swiss"]
[EventCountry "GRE"]
[SourceTitle "playchess.com"]
[Source "ChessBase"]
[SourceQuality "1"]
[TimeControl "5400+30"]

1. d4 {[%emt 0:00:01]} d5 {[%emt 0:00:19]} 2. Bf4 {[%emt 0:00:02]} Nf6 {[%emt 0:00:23]} 3. e3 {[%emt 0:00:06]} c5 {[%emt 0:01:02]} 4. Nd2 {[%emt 0:01:37]} Nc6 {[%emt 0:02:29]} 5. c3 {[%emt 0:00:19]} cxd4 {[%emt 0:01:37]} 6. exd4 {[%emt 0:00:02]} Bf5 {[%emt 0:01:04]} 7. Ngf3 {[%emt 0:05:11]} e6 {[%emt 0:01:00]} 8. Bb5 {[%emt 0:01:52]} Qb6 {[%emt 0:25:51]} 9. Qb3 {[%emt 0:06:03]} Be7 {[%emt 0:21:15]} 10. c4 {[%emt 0:12:46]} a6 {[%emt 0:19:30]} 11. Ba4 {[%emt 0:00:02]} Qxb3 {[%emt 0:00:22]} 12. axb3 {[%emt 0:03:16]} O-O {[%emt 0:01:36]} 13. Bxc6 {[%emt 0:00:13]} bxc6 {[%emt 0:00:04]} 14. c5 {[%emt 0:00:42]} Bd3 {[%emt 0:01:53]} 15. h3 {[%emt 0:03:24]} Nd7 {[%emt 0:01:21]} 16. b4 {[%emt 0:04:52]} f6 {[%emt 0:01:46]} 17. Nb3 {[%emt 0:00:53]} Bd8 {[%emt 0:02:05]} 18. Kd2 {[%emt 0:01:48]} Bb5 {[%emt 0:01:24]} 19. Rhe1 {[%emt 0:02:44]} Re8 {[%emt 0:00:24]} 20. Na5 {[%emt 0:04:04]} Ra7 {[%emt 0:01:03]} 21. Re3 {[%emt 0:02:32]} Kf7 {[%emt 0:03:38]} 22. Rae1 {[%emt 0:04:14]} Bxa5 {[%emt 0:00:30]} 23. bxa5 {[%emt 0:00:02]} Rb7 {[%emt 0:01:41]} 24. b4 {[%emt 0:01:05]} Nf8 {[%emt 0:02:06]} 25. g4 {[%emt 0:02:09]} g5 {[%emt 0:00:28]} 26. Bg3 {[%emt 0:02:01]} Ng6 {[%emt 0:02:39]} 27. h4 {[%emt 0:00:57]} h6 {[%emt 0:00:36]} 28. hxg5 {[%emt 0:05:40]} hxg5 {[%emt 0:00:05]} 29. Rh1 {[%emt 0:00:09]} Kg7 {[%emt 0:00:35]} 30. Rh5 {[%emt 0:03:31]} Bf1 {[%emt 0:02:58]} 31. Kc3 {[%emt 0:01:00]} Bc4 {[%emt 0:00:20]} 32. Nd2 {[%emt 0:01:26]} Bb5 {[%emt 0:00:06]} 33. Bd6 {[%emt 0:02:13]} Rd7 {[%emt 0:01:10]} 34. Nf3 {[%emt 0:06:59]} Ba4 {[%emt 0:00:22]} 35. Re1 {[%emt 0:01:55]} Bb5 {[%emt 0:00:12]} 36. Ng1 {[%emt 0:00:52]} Bc4 {[%emt 0:02:12]} 37. Nh3 {[%emt 0:00:39]} Bb5 {[%emt 0:01:15]} 38. f4 {[%emt 0:05:30]} gxf4 {[%emt 0:00:06]} 39. Nxf4 {[%emt 0:00:50]} Nxf4 {[%emt 0:00:19]} 40. Bxf4 {[%emt 0:00:01]} Rg8 {[%emt 0:01:50]} 41. Rxe6 {[%emt 0:01:03]} Kf7 {[%emt 0:00:04]} 42. Rd6 {[%emt 0:06:17]} Rxd6 {[%emt 0:00:52]} 43. cxd6 {[%emt 0:00:02]} Rd8 {[%emt 0:00:52]} 44. Rh7+ {[%emt 0:01:57]} Ke8 {[%emt 0:00:09]} 45. Re7+ {[%emt 0:00:31]} Kf8 {[%emt 0:00:23]} 46. Kd2 {[%emt 0:03:02]} c5 {[%emt 0:00:44]} 47. bxc5 {[%emt 0:00:53]} Re8 {[%emt 0:00:43]} 48. Bh6+ {[%emt 0:00:21]} Kg8 {[%emt 0:00:05]} 49. Rg7+ {[%emt 0:02:18]} Kh8 {[%emt 0:00:09]} 50. Rc7 {[%emt 0:00:49]} Kg8 {[%emt 0:01:04]} 51. d7 {[%emt 0:01:26]} 1-0

[Event "34rd NATO Championship 2024"]
[Site "Rhodes"]
[Date "2024.10.23"]
[Round "4.14"]
[White "Tocco, Paolo"]
[Black "Sauer, Marko"]
[Result "1/2-1/2"]
[ECO "D00"]
[WhiteElo "2010"]
[BlackElo "2086"]
[Annotator "RC"]
[PlyCount "84"]
[EventDate "2024.09.18"]
[EventType "swiss"]
[EventCountry "GRE"]
[SourceTitle "playchess.com"]
[Source "ChessBase"]
[SourceQuality "1"]
[TimeControl "5400+30"]

1. d4 {[%emt 0:00:03]} d5 {[%emt 0:00:16]} 2. Nc3 {[%emt 0:00:06]} Nf6 {[%emt 0:00:17]} 3. Bf4 {[%emt 0:00:06]} c6 {[%emt 0:02:06]} 4. e3 {[%emt 0:00:06]} Bf5 {[%emt 0:01:10]} 5. Nf3 {[%emt 0:00:34]} Nbd7 {[%emt 0:02:11]} 6. Bd3 {[%emt 0:03:57]} e6 {[%emt 0:04:58]} 7. Ne5 {[%emt 0:12:37]} Nxe5 {[%emt 0:13:02]} 8. dxe5 {[%emt 0:00:27]} Nd7 {[%emt 0:01:20]} 9. e4 {[%emt 0:09:22]} dxe4 {[%emt 0:05:16]} 10. Nxe4 {[%emt 0:01:43]} Bxe4 {[%emt 0:03:05]} 11. Bxe4 {[%emt 0:00:06]} Qa5+ {[%emt 0:01:35]} 12. Qd2 {[%emt 0:00:08]} Qxd2+ {[%emt 0:00:24]} 13. Kxd2 {[%emt 0:00:02]} Bc5 {[%emt 0:00:36]} 14. Bg3 {[%emt 0:00:50]} O-O-O {[%emt 0:14:05]} 15. Kc3 {[%emt 0:00:34]} Nb6 {[%emt 0:05:37]} 16. Rad1 {[%emt 0:00:57]} h6 {[%emt 0:02:00]} 17. b4 {[%emt 0:01:26]} Be7 {[%emt 0:00:40]} 18. Kb3 {[%emt 0:00:56]} Rxd1 {[%emt 0:02:02]} 19. Rxd1 {[%emt 0:00:03]} Rd8 {[%emt 0:00:08]} 20. Rxd8+ {[%emt 0:00:52]} Bxd8 {[%emt 0:00:32]} 21. c4 {[%emt 0:00:08]} Bc7 {[%emt 0:00:56]} 22. f4 {[%emt 0:01:55]} Nd7 {[%emt 0:00:48]} 23. h4 {[%emt 0:03:00]} f6 {[%emt 0:02:10]} 24. exf6 {[%emt 0:01:03]} Nxf6 {[%emt 0:00:13]} 25. Bf3 {[%emt 0:00:07]} Kd7 {[%emt 0:02:51]} 26. Bh2 {[%emt 0:00:30]} a5 {[%emt 0:01:09]} 27. a3 {[%emt 0:02:26]} axb4 {[%emt 0:00:45]} 28. axb4 {[%emt 0:00:03]} b5 {[%emt 0:03:32]} 29. g3 {[%emt 0:05:59]} bxc4+ {[%emt 0:06:31]} 30. Kxc4 {[%emt 0:00:08]} Nd5 {[%emt 0:01:29]} 31. Bg1 {[%emt 0:00:44]} Bd6 {[%emt 0:03:11]} 32. Bd4 {[%emt 0:04:40]} Bf8 {[%emt 0:00:56]} 33. b5 {[%emt 0:01:51]} cxb5+ {[%emt 0:01:16]} 34. Kxb5 {[%emt 0:00:03]} Nc7+ {[%emt 0:01:57]} 35. Kc4 {[%emt 0:00:15]} Ne8 {[%emt 0:01:17]} 36. Kd3 {[%emt 0:10:44]} Be7 {[%emt 0:00:50]} 37. Bd1 {[%emt 0:02:14]} Bf6 {[%emt 0:02:03]} 38. Ba4+ {[%emt 0:03:15]} Ke7 {[%emt 0:00:14]} 39. Bc5+ {[%emt 0:09:50]} Kf7 {[%emt 0:01:32]} 40. Ke4 {[%emt 0:02:19]} g6 {[%emt 0:01:00]} 41. Kf3 {[%emt 0:07:57]} h5 {[%emt 0:00:44]} 42. Bc6 {[%emt 0:05:48]} Ng7 {[%emt 0:00:56]} 1/2-1/2

[Event "34rd NATO Championship 2024"]
[Site "Rhodes"]
[Date "2024.10.23"]
[Round "4.15"]
[White "Tustanowski, Mateusz"]
[Black "Koops, Janis"]
[Result "1-0"]
[ECO "D02"]
[WhiteElo "2081"]
[BlackElo "1990"]
[Annotator "RC"]
[PlyCount "93"]
[EventDate "2024.09.18"]
[EventType "swiss"]
[EventCountry "GRE"]
[SourceTitle "playchess.com"]
[Source "ChessBase"]
[SourceQuality "1"]
[TimeControl "5400+30"]

1. d4 {[%emt 0:00:04]} Nf6 {[%emt 0:00:22]} 2. Bf4 {[%emt 0:00:08]} e6 {[%emt 0:00:34]} 3. e3 {[%emt 0:01:18]} c5 {[%emt 0:01:14]} 4. Nd2 {[%emt 0:03:34]} d5 {[%emt 0:09:49]} 5. Ngf3 {[%emt 0:01:48]} Nc6 {[%emt 0:00:27]} 6. c3 {[%emt 0:02:08]} Bd6 {[%emt 0:02:31]} 7. Bg3 {[%emt 0:00:43]} O-O {[%emt 0:00:31]} 8. Bd3 {[%emt 0:00:07]} Re8 {[%emt 0:00:12]} 9. Ne5 {[%emt 0:25:23]} Qc7 {[%emt 0:13:00]} 10. f4 {[%emt 0:01:21]} Ne7 {[%emt 0:01:37]} 11. Bf2 {[%emt 0:19:20]} c4 {[%emt 0:06:35]} 12. Bc2 {[%emt 0:01:21]} b5 {[%emt 0:01:02]} 13. a3 {[%emt 0:03:14]} Bb7 {[%emt 0:00:18]} 14. Qf3 {[%emt 0:00:54]} a5 {[%emt 0:15:06]} 15. g4 {[%emt 0:01:46]} g6 {[%emt 0:05:44]} 16. Bh4 {[%emt 0:07:33]} Kg7 {[%emt 0:04:14]} 17. Bxf6+ {[%emt 0:05:36]} Kxf6 {[%emt 0:00:03]} 18. Qh3 {[%emt 0:00:07]} Kg7 {[%emt 0:03:44]} 19. Nxf7 {[%emt 0:00:05]} Kxf7 {[%emt 0:01:59]} 20. Qxh7+ {[%emt 0:00:04]} Kf8 {[%emt 0:00:08]} 21. Qh6+ {[%emt 0:00:10]} Kf7 {[%emt 0:02:08]} 22. Qh7+ {[%emt 0:00:29]} Kf8 {[%emt 0:00:08]} 23. Nf3 {[%emt 0:00:13]} Ng8 {[%emt 0:00:58]} 24. Qxg6 {[%emt 0:00:33]} Qg7 {[%emt 0:00:16]} 25. h4 {[%emt 0:03:23]} Nf6 {[%emt 0:01:34]} 26. h5 {[%emt 0:05:31]} Ne4 {[%emt 0:01:15]} 27. Qxg7+ {[%emt 0:00:05]} Kxg7 {[%emt 0:00:13]} 28. Nd2 {[%emt 0:00:36]} Rf8 {[%emt 0:04:37]} 29. g5 {[%emt 0:06:29]} Rh8 {[%emt 0:03:35]} 30. Rh3 {[%emt 0:00:44]} Raf8 {[%emt 0:02:25]} 31. Ke2 {[%emt 0:00:16]} Rxh5 {[%emt 0:01:44]} 32. Rxh5 {[%emt 0:05:19]} Ng3+ {[%emt 0:00:09]} 33. Kf3 {[%emt 0:00:06]} Nxh5 {[%emt 0:00:24]} 34. Rh1 {[%emt 0:00:08]} Nxf4 {[%emt 0:03:34]} 35. Rh7+ {[%emt 0:00:05]} Kg8 {[%emt 0:00:07]} 36. exf4 {[%emt 0:00:14]} Rxf4+ {[%emt 0:01:02]} 37. Ke3 {[%emt 0:00:57]} Rf7 {[%emt 0:00:50]} 38. g6 {[%emt 0:01:03]} Rg7 {[%emt 0:00:55]} 39. Nf3 {[%emt 0:00:26]} Be7 {[%emt 0:02:49]} 40. Kf4 {[%emt 0:02:07]} Bc6 {[%emt 0:03:39]} 41. Ng5 {[%emt 0:02:01]} Bd7 {[%emt 0:01:53]} 42. Nf7 {[%emt 0:00:20]} Kf8 {[%emt 0:01:01]} 43. Ke5 {[%emt 0:00:50]} Be8 {[%emt 0:02:50]} 44. Rh8+ {[%emt 0:00:55]} Rg8 {[%emt 0:00:04]} 45. Rxg8+ {[%emt 0:00:16]} Kxg8 {[%emt 0:00:04]} 46. Kxe6 {[%emt 0:00:05]} Kf8 {[%emt 0:01:02]} 47. Nd6 {[%emt 0:00:37]} 1-0

[Event "34rd NATO Championship 2024"]
[Site "Rhodes"]
[Date "2024.10.23"]
[Round "4.16"]
[White "Pazeriene, Diana"]
[Black "Mestek, Igor"]
[Result "1-0"]
[ECO "D22"]
[WhiteElo "1993"]
[BlackElo "2080"]
[Annotator "RC"]
[PlyCount "189"]
[EventDate "2024.09.18"]
[EventType "swiss"]
[EventCountry "GRE"]
[SourceTitle "playchess.com"]
[Source "ChessBase"]
[SourceQuality "1"]
[TimeControl "5400+30"]

1. d4 {[%emt 0:00:04]} d5 {[%emt 0:00:14]} 2. c4 {[%emt 0:00:12]} dxc4 {[%emt 0:00:21]} 3. Nf3 {[%emt 0:00:11]} a6 {[%emt 0:00:12]} 4. e3 {[%emt 0:00:37]} b5 {[%emt 0:00:14]} 5. b3 {[%emt 0:01:06]} Nf6 {[%emt 0:02:00]} 6. a4 {[%emt 0:00:15]} Bb7 {[%emt 0:00:25]} 7. bxc4 {[%emt 0:00:23]} bxc4 {[%emt 0:00:09]} 8. Bxc4 {[%emt 0:00:05]} e6 {[%emt 0:00:22]} 9. O-O {[%emt 0:01:38]} Nbd7 {[%emt 0:00:10]} 10. Nbd2 {[%emt 0:02:33]} Be7 {[%emt 0:07:01]} 11. Rb1 {[%emt 0:04:50]} Qc8 {[%emt 0:03:56]} 12. Qe2 {[%emt 0:03:26]} Ne4 {[%emt 0:06:39]} 13. Nxe4 {[%emt 0:02:47]} Bxe4 {[%emt 0:00:09]} 14. Bd3 {[%emt 0:00:17]} Bxd3 {[%emt 0:01:42]} 15. Qxd3 {[%emt 0:00:03]} O-O {[%emt 0:03:41]} 16. Ba3 {[%emt 0:03:35]} Bxa3 {[%emt 0:04:13]} 17. Qxa3 {[%emt 0:00:02]} Rb8 {[%emt 0:05:19]} 18. Rxb8 {[%emt 0:07:19]} Qxb8 {[%emt 0:00:25]} 19. Rc1 {[%emt 0:00:20]} Qb7 {[%emt 0:05:54]} 20. h3 {[%emt 0:02:00]} h6 {[%emt 0:02:17]} 21. Qe7 {[%emt 0:01:38]} Nb6 {[%emt 0:02:56]} 22. Rxc7 {[%emt 0:05:25]} Qe4 {[%emt 0:03:50]} 23. Qa3 {[%emt 0:02:02]} Nd5 {[%emt 0:05:22]} 24. Rc1 {[%emt 0:02:25]} g5 {[%emt 0:04:13]} 25. Ne5 {[%emt 0:04:48]} Rb8 {[%emt 0:03:54]} 26. Nd7 {[%emt 0:01:57]} Ra8 {[%emt 0:03:27]} 27. Qd6 {[%emt 0:02:20]} Kg7 {[%emt 0:01:15]} 28. Nc5 {[%emt 0:10:18]} Qg6 {[%emt 0:01:29]} 29. Nxa6 {[%emt 0:02:04]} g4 {[%emt 0:04:13]} 30. hxg4 {[%emt 0:04:37]} Qxg4 {[%emt 0:01:17]} 31. Nb4 {[%emt 0:00:15]} Ra5 {[%emt 0:03:33]} 32. Nxd5 {[%emt 0:00:50]} Rxd5 {[%emt 0:00:07]} 33. Qg3 {[%emt 0:00:43]} Qxg3 {[%emt 0:00:07]} 34. fxg3 {[%emt 0:00:01]} Ra5 {[%emt 0:02:08]} 35. Rc4 {[%emt 0:01:05]} f5 {[%emt 0:02:04]} 36. Kf2 {[%emt 0:00:44]} Kf6 {[%emt 0:00:07]} 37. Kf3 {[%emt 0:00:21]} h5 {[%emt 0:01:06]} 38. Kf4 {[%emt 0:03:03]} Ra6 {[%emt 0:00:22]} 39. Rb4 {[%emt 0:00:26]} Ra5 {[%emt 0:01:37]} 40. Kf3 {[%emt 0:04:32]} Ra6 {[%emt 0:02:09]} 41. Rc4 {[%emt 0:00:30]} Ra8 {[%emt 0:02:41]} 42. Kf4 {[%emt 0:00:34]} Ra5 {[%emt 0:00:54]} 43. Rb4 {[%emt 0:00:15]} Ra6 {[%emt 0:00:15]} 44. e4 {[%emt 0:02:11]} fxe4 {[%emt 0:00:14]} 45. Kxe4 {[%emt 0:00:10]} Ra5 {[%emt 0:01:08]} 46. Rb5 {[%emt 0:01:31]} Rxa4 {[%emt 0:00:07]} 47. Rxh5 {[%emt 0:00:08]} Ra2 {[%emt 0:00:12]} 48. Rh6+ {[%emt 0:00:55]} Kf7 {[%emt 0:00:16]} 49. Rh2 {[%emt 0:02:43]} Kf6 {[%emt 0:00:17]} 50. Rh6+ {[%emt 0:01:52]} Kf7 {[%emt 0:00:08]} 51. Kf3 {[%emt 0:00:26]} Ra3+ {[%emt 0:00:22]} 52. Kf2 {[%emt 0:00:06]} Ra2+ {[%emt 0:00:49]} 53. Kg1 {[%emt 0:00:10]} Rd2 {[%emt 0:00:09]} 54. Rh4 {[%emt 0:00:07]} Kf6 {[%emt 0:04:25]} 55. Kh2 {[%emt 0:00:59]} Kg5 {[%emt 0:00:46]} 56. Re4 {[%emt 0:00:21]} Kf5 {[%emt 0:00:34]} 57. Rf4+ {[%emt 0:00:52]} Kg5 {[%emt 0:00:06]} 58. Kg1 {[%emt 0:02:29]} e5 {[%emt 0:01:41]} 59. dxe5 {[%emt 0:00:26]} Re2 {[%emt 0:00:07]} 60. e6 {[%emt 0:02:18]} Rxe6 {[%emt 0:01:28]} 61. Kf2 {[%emt 0:00:16]} Ra6 {[%emt 0:00:52]} 62. Re4 {[%emt 0:00:49]} Ra2+ {[%emt 0:00:55]} 63. Kg1 {[%emt 0:00:27]} Kf5 {[%emt 0:00:55]} 64. Rb4 {[%emt 0:00:20]} Kg5 {[%emt 0:00:25]} 65. Kh2 {[%emt 0:00:29]} Ra1 {[%emt 0:00:32]} 66. Rb8 {[%emt 0:01:31]} Ra4 {[%emt 0:01:26]} 67. Kh3 {[%emt 0:00:17]} Ra3 {[%emt 0:00:18]} 68. Rb5+ {[%emt 0:00:11]} Kg6 {[%emt 0:00:12]} 69. Rb8 {[%emt 0:01:11]} Rc3 {[%emt 0:00:10]} 70. Kh4 {[%emt 0:00:32]} Rc2 {[%emt 0:00:09]} 71. Rb6+ {[%emt 0:00:16]} Kg7 {[%emt 0:00:10]} 72. Kh3 {[%emt 0:00:37]} Rc3 {[%emt 0:00:06]} 73. Kh2 {[%emt 0:00:14]} Rc4 {[%emt 0:00:12]} 74. Ra6 {[%emt 0:00:17]} Rb4 {[%emt 0:00:06]} 75. Kh3 {[%emt 0:00:25]} Rb3 {[%emt 0:00:09]} 76. Ra4 {[%emt 0:00:23]} Kg6 {[%emt 0:00:19]} 77. Rf4 {[%emt 0:00:32]} Kg5 {[%emt 0:00:11]} 78. Rf3 {[%emt 0:00:30]} Rb4 {[%emt 0:00:17]} 79. Rc3 {[%emt 0:00:14]} Rb5 {[%emt 0:00:44]} 80. g4 {[%emt 0:00:23]} Ra5 {[%emt 0:00:10]} 81. Rf3 {[%emt 0:00:21]} Ra4 {[%emt 0:00:48]} 82. Rf5+ {[%emt 0:00:18]} Kg6 {[%emt 0:00:06]} 83. Rb5 {[%emt 0:00:27]} Ra3+ {[%emt 0:00:23]} 84. Kh4 {[%emt 0:00:13]} Ra2 {[%emt 0:00:08]} 85. Rb6+ {[%emt 0:00:12]} Kg7 {[%emt 0:00:07]} 86. g3 {[%emt 0:00:15]} Ra5 {[%emt 0:00:10]} 87. g5 {[%emt 0:00:43]} Ra4+ {[%emt 0:00:28]} 88. Kh5 {[%emt 0:00:16]} Ra3 {[%emt 0:00:47]} 89. Rb7+ {[%emt 0:00:27]} Kg8 {[%emt 0:00:13]} 90. Kh6 {[%emt 0:03:24]} Ra6+ {[%emt 0:01:43]} 91. g6 {[%emt 0:00:12]} Ra8 {[%emt 0:00:28]} 92. g4 {[%emt 0:00:19]} Rc8 {[%emt 0:00:05]} 93. g5 {[%emt 0:00:55]} Ra8 {[%emt 0:00:21]} 94. Rb6 {[%emt 0:00:16]} Rc8 {[%emt 0:03:02]} 95. g7 {[%emt 0:00:52]} 1-0

[Event "34rd NATO Championship 2024"]
[Site "Rhodes"]
[Date "2024.10.23"]
[Round "4.17"]
[White "Mihailov, Iulian"]
[Black "Dekker, Ard"]
[Result "1/2-1/2"]
[ECO "B13"]
[WhiteElo "2048"]
[BlackElo "1963"]
[Annotator "RC"]
[PlyCount "42"]
[EventDate "2024.09.18"]
[EventType "swiss"]
[EventCountry "GRE"]
[SourceTitle "playchess.com"]
[Source "ChessBase"]
[SourceQuality "1"]
[TimeControl "5400+30"]

1. e4 {[%emt 0:00:03]} c6 {[%emt 0:00:03]} 2. d4 {[%emt 0:00:07]} d5 {[%emt 0:00:02]} 3. exd5 {[%emt 0:00:18]} cxd5 {[%emt 0:00:02]} 4. Bd3 {[%emt 0:00:17]} Nc6 {[%emt 0:00:03]} 5. c3 {[%emt 0:00:19]} Qc7 {[%emt 0:00:04]} 6. Ne2 {[%emt 0:00:53]} Bg4 {[%emt 0:01:02]} 7. O-O {[%emt 0:00:40]} e6 {[%emt 0:00:07]} 8. Qe1 {[%emt 0:01:01]} Bd6 {[%emt 0:01:52]} 9. f3 {[%emt 0:00:38]} Bh5 {[%emt 0:00:23]} 10. Qh4 {[%emt 0:00:07]} Bg6 {[%emt 0:06:08]} 11. Bxg6 {[%emt 0:00:05]} fxg6 {[%emt 0:00:18]} 12. Nf4 {[%emt 0:06:51]} Kf7 {[%emt 0:03:20]} 13. Nd3 {[%emt 0:18:01]} Nf6 {[%emt 0:06:01]} 14. f4 {[%emt 0:14:24]} Rhf8 {[%emt 0:02:48]} 15. Nd2 {[%emt 0:11:55]} Kg8 {[%emt 0:00:14]} 16. Nf3 {[%emt 0:03:59]} Ne4 {[%emt 0:02:40]} 17. Bd2 {[%emt 0:09:08]} Rf6 {[%emt 0:07:47]} 18. Rae1 {[%emt 0:00:19]} Raf8 {[%emt 0:03:01]} 19. Bc1 {[%emt 0:00:24]} Nd8 {[%emt 0:01:54]} 20. Nde5 {[%emt 0:07:46]} a6 {[%emt 0:09:19]} 21. Re2 {[%emt 0:21:46]} Re8 {[%emt 0:00:27]} 1/2-1/2

[Event "34rd NATO Championship 2024"]
[Site "Rhodes"]
[Date "2024.10.23"]
[Round "4.18"]
[White "Peraino, Andrew"]
[Black "Flaata, Alexander R."]
[Result "1-0"]
[ECO "B12"]
[WhiteElo "1965"]
[BlackElo "2040"]
[Annotator "RC"]
[PlyCount "67"]
[EventDate "2024.09.18"]
[EventType "swiss"]
[EventCountry "GRE"]
[SourceTitle "playchess.com"]
[Source "ChessBase"]
[SourceQuality "1"]
[TimeControl "5400+30"]

1. e4 {[%emt 0:00:02]} c6 {[%emt 0:01:07]} 2. d4 {[%emt 0:00:18]} d5 {[%emt 0:00:05]} 3. e5 {[%emt 0:01:49]} c5 {[%emt 0:00:09]} 4. Nd2 {[%emt 0:02:28]} Nc6 {[%emt 0:04:44]} 5. Bb5 {[%emt 0:03:13]} Qb6 {[%emt 0:15:01]} 6. Bxc6+ {[%emt 0:08:53]} bxc6 {[%emt 0:01:12]} 7. dxc5 {[%emt 0:06:54]} Qxc5 {[%emt 0:00:45]} 8. c3 {[%emt 0:00:09]} e6 {[%emt 0:12:41]} 9. Ne2 {[%emt 0:03:33]} Ba6 {[%emt 0:02:08]} 10. O-O {[%emt 0:00:16]} h5 {[%emt 0:02:57]} 11. b4 {[%emt 0:02:13]} Qb6 {[%emt 0:10:25]} 12. Nb3 {[%emt 0:00:45]} Nh6 {[%emt 0:01:38]} 13. Be3 {[%emt 0:00:12]} Qc7 {[%emt 0:00:15]} 14. f4 {[%emt 0:07:58]} Nf5 {[%emt 0:03:24]} 15. Bf2 {[%emt 0:05:52]} Be7 {[%emt 0:02:48]} 16. Re1 {[%emt 0:01:59]} g5 {[%emt 0:07:10]} 17. Ned4 {[%emt 0:03:54]} Nxd4 {[%emt 0:01:11]} 18. Bxd4 {[%emt 0:00:53]} gxf4 {[%emt 0:00:55]} 19. Qf3 {[%emt 0:00:24]} Bg5 {[%emt 0:03:15]} 20. a4 {[%emt 0:06:02]} h4 {[%emt 0:05:06]} 21. b5 {[%emt 0:06:47]} Bb7 {[%emt 0:02:08]} 22. Nc5 {[%emt 0:05:12]} h3 {[%emt 0:04:59]} 23. Qg4 {[%emt 0:00:27]} Be7 {[%emt 0:01:27]} 24. Rab1 {[%emt 0:07:42]} hxg2 {[%emt 0:03:44]} 25. b6 {[%emt 0:06:14]} axb6 {[%emt 0:00:48]} 26. Nxb7 {[%emt 0:00:10]} Qxb7 {[%emt 0:00:05]} 27. Rxb6 {[%emt 0:00:09]} Qc8 {[%emt 0:02:56]} 28. Qg7 {[%emt 0:01:45]} Rf8 {[%emt 0:00:27]} 29. Reb1 {[%emt 0:00:09]} c5 {[%emt 0:00:13]} 30. Bf2 {[%emt 0:00:05]} Qd8 {[%emt 0:01:08]} 31. a5 {[%emt 0:00:53]} d4 {[%emt 0:00:26]} 32. cxd4 {[%emt 0:00:22]} c4 {[%emt 0:00:16]} 33. Qxg2 {[%emt 0:01:40]} c3 {[%emt 0:00:18]} 34. Qc6+ {[%emt 0:00:12]} 1-0

[Event "34rd NATO Championship 2024"]
[Site "Rhodes"]
[Date "2024.10.23"]
[Round "4.19"]
[White "Onley, David E"]
[Black "Giedraitis, Mingaudas"]
[Result "1/2-1/2"]
[ECO "B12"]
[WhiteElo "2040"]
[BlackElo "1950"]
[Annotator "RC"]
[PlyCount "71"]
[EventDate "2024.09.18"]
[EventType "swiss"]
[EventCountry "GRE"]
[SourceTitle "playchess.com"]
[Source "ChessBase"]
[SourceQuality "1"]
[TimeControl "5400+30"]

1. e4 {[%emt 0:00:03]} c6 {[%emt 0:02:48]} 2. d4 {[%emt 0:00:06]} d5 {[%emt 0:00:05]} 3. e5 {[%emt 0:00:13]} c5 {[%emt 0:00:22]} 4. c3 {[%emt 0:01:11]} Nc6 {[%emt 0:00:15]} 5. Nf3 {[%emt 0:00:53]} Bg4 {[%emt 0:00:22]} 6. Be2 {[%emt 0:00:34]} e6 {[%emt 0:00:27]} 7. Nbd2 {[%emt 0:02:07]} cxd4 {[%emt 0:01:08]} 8. cxd4 {[%emt 0:03:58]} Nge7 {[%emt 0:01:14]} 9. h3 {[%emt 0:02:54]} Bh5 {[%emt 0:08:52]} 10. O-O {[%emt 0:06:31]} Qb6 {[%emt 0:19:09]} 11. a3 {[%emt 0:03:21]} Bg6 {[%emt 0:06:45]} 12. b4 {[%emt 0:10:14]} Nxd4 {[%emt 0:25:41]} 13. Nxd4 {[%emt 0:03:25]} Qxd4 {[%emt 0:00:31]} 14. Qa4+ {[%emt 0:00:27]} Nc6 {[%emt 0:05:43]} 15. Nb3 {[%emt 0:12:25]} Qxe5 {[%emt 0:02:12]} 16. Ba6 {[%emt 0:05:34]} Qc7 {[%emt 0:03:22]} 17. Bf4 {[%emt 0:09:08]} Qb6 {[%emt 0:04:51]} 18. Bxb7 {[%emt 0:07:59]} Qxb7 {[%emt 0:00:09]} 19. Rfc1 {[%emt 0:10:36]} Bd3 {[%emt 0:04:11]} 20. Nd4 {[%emt 0:00:41]} Bc4 {[%emt 0:00:39]} 21. Rxc4 {[%emt 0:08:39]} dxc4 {[%emt 0:00:21]} 22. Nxc6 {[%emt 0:00:13]} a6 {[%emt 0:02:41]} 23. Ne5+ {[%emt 0:01:02]} Qb5 {[%emt 0:00:09]} 24. Qc2 {[%emt 0:00:08]} Bd6 {[%emt 0:00:49]} 25. a4 {[%emt 0:01:40]} Qb7 {[%emt 0:03:57]} 26. Qxc4 {[%emt 0:04:50]} O-O {[%emt 0:00:32]} 27. Rb1 {[%emt 0:00:44]} Rac8 {[%emt 0:01:16]} 28. Qe2 {[%emt 0:00:25]} Bxe5 {[%emt 0:01:44]} 29. Bxe5 {[%emt 0:00:24]} f6 {[%emt 0:00:39]} 30. Bd6 {[%emt 0:00:28]} Rfe8 {[%emt 0:00:15]} 31. b5 {[%emt 0:01:31]} axb5 {[%emt 0:00:16]} 32. axb5 {[%emt 0:00:10]} Rcd8 {[%emt 0:01:31]} 33. Bf4 {[%emt 0:00:49]} Qd5 {[%emt 0:01:30]} 34. Bc7 {[%emt 0:01:10]} Rd7 {[%emt 0:00:40]} 35. b6 {[%emt 0:00:23]} Qb7 {[%emt 0:00:06]} 36. Qb5 {[%emt 0:01:47]} 1/2-1/2